[Event "Titled Tuesday Blitz July 25 Late 2023"]
[White "Xia, Brandon"]
[Black "Liu, Casper"]
[WhiteFideId "30921880"]
[BlackFideId "1454153"]
[WhiteElo "2344"]
[BlackElo "2465"]
[Result "0-1"]
[Round "8"]
[TimeControl "180+2"]
[Date "2023.07.25"]
[WhiteClock "0:01:11"]
[BlackClock "0:01:15"]
[Board "114"]

1. b3 {[%clk 0:03:00]}  e5 {[%clk 0:02:56]} 2. Bb2 {[%clk 0:03:00]}  d6 {[%clk 0:02:54]} 3. e3 {[%clk 0:03:01]}  Nd7 {[%clk 0:02:53]} 4. Nf3 {[%clk 0:03:01]}  f5 {[%clk 0:02:52]} 5. c4 {[%clk 0:03:00]}  Ngf6 {[%clk 0:02:52]} 6. Nc3 {[%clk 0:02:59]}  g6 {[%clk 0:02:53]} 7. d4 {[%clk 0:02:59]}  e4 {[%clk 0:02:52]} 8. Nd2 {[%clk 0:03:00]}  Bg7 {[%clk 0:02:53]} 9. Be2 {[%clk 0:02:59]}  O-O {[%clk 0:02:54]} 10. O-O {[%clk 0:03:00]}  g5 {[%clk 0:02:53]} 11. f3 {[%clk 0:02:59]}  exf3 {[%clk 0:02:47]} 12. Bxf3 {[%clk 0:02:51]}  Qe8 {[%clk 0:02:48]} 13. e4 {[%clk 0:02:44]}  g4 {[%clk 0:02:38]} 14. Be2 {[%clk 0:02:43]}  fxe4 {[%clk 0:02:38]} 15. Bxg4 {[%clk 0:02:34]}  e3 {[%clk 0:02:33]} 16. Ndb1 {[%clk 0:02:31]}  Nxg4 {[%clk 0:02:25]} 17. Qxg4 {[%clk 0:02:31]}  Nc5 {[%clk 0:02:08]} 18. Qh4 {[%clk 0:02:11]}  Rxf1+ {[%clk 0:01:50]} 19. Kxf1 {[%clk 0:02:12]}  Qf7+ {[%clk 0:01:49]} 20. Ke2 {[%clk 0:01:51]}  Bg4+ {[%clk 0:01:46]} 21. Qxg4 {[%clk 0:01:49]}  Qf2+ {[%clk 0:01:46]} 22. Kd1 {[%clk 0:01:50]}  Qf1+ {[%clk 0:01:13]} 23. Kc2 {[%clk 0:01:46]}  Qd3+ {[%clk 0:01:14]} 24. Kc1 {[%clk 0:01:45]}  Rf8 {[%clk 0:01:15]} 25. dxc5 {[%clk 0:01:13]}  Rf1+ {[%clk 0:01:15]} 26. Nd1 {[%clk 0:01:14]}  Rxd1+ {[%clk 0:01:13]} 27. Qxd1 {[%clk 0:01:12]}  Bxb2+ {[%clk 0:01:14]} 28. Kxb2 {[%clk 0:01:12]}  Qxd1 {[%clk 0:01:15]} 29. Nc3 {[%clk 0:01:11]}  Qd2+ {[%clk 0:01:15]} 0-1


[Site "https://www.chess.com"]

[Event "Titled Tuesday Blitz July 25 Late 2023"]
[White "Gatterer, Florian"]
[Black "Schut, Han"]
[WhiteFideId "811688"]
[BlackFideId "1005561"]
[WhiteElo "2421"]
[BlackElo "2275"]
[Result "1-0"]
[Round "8"]
[TimeControl "180+2"]
[Date "2023.07.25"]
[WhiteClock "0:00:54"]
[BlackClock "0:00:00"]
[Board "116"]

1. b3 {[%clk 0:03:00]}  e5 {[%clk 0:02:58]} 2. c4 {[%clk 0:02:58]}  Nf6 {[%clk 0:02:53]} 3. Bb2 {[%clk 0:02:57]}  Nc6 {[%clk 0:02:54]} 4. Nf3 {[%clk 0:02:58]}  Bd6 {[%clk 0:02:51]} 5. e3 {[%clk 0:02:56]}  Qe7 {[%clk 0:02:51]} 6. Be2 {[%clk 0:02:48]}  e4 {[%clk 0:02:50]} 7. Nd4 {[%clk 0:02:48]}  Be5 {[%clk 0:02:43]} 8. Nf5 {[%clk 0:02:20]}  Qf8 {[%clk 0:02:43]} 9. Bxe5 {[%clk 0:02:17]}  Nxe5 {[%clk 0:02:41]} 10. Ng3 {[%clk 0:02:14]}  b6 {[%clk 0:02:00]} 11. Nc3 {[%clk 0:02:10]}  Bb7 {[%clk 0:02:00]} 12. Nb5 {[%clk 0:01:54]}  O-O-O {[%clk 0:01:32]} 13. Nxa7+ {[%clk 0:01:52]}  Kb8 {[%clk 0:01:33]} 14. Nb5 {[%clk 0:01:52]}  d5 {[%clk 0:01:29]} 15. O-O {[%clk 0:01:38]}  h5 {[%clk 0:01:15]} 16. a4 {[%clk 0:01:27]}  h4 {[%clk 0:01:15]} 17. Nf5 {[%clk 0:01:27]}  g6 {[%clk 0:01:07]} 18. Nfd4 {[%clk 0:01:26]}  c6 {[%clk 0:00:46]} 19. Nc3 {[%clk 0:01:25]}  dxc4 {[%clk 0:00:42]} 20. bxc4 {[%clk 0:01:23]}  h3 {[%clk 0:00:35]} 21. g3 {[%clk 0:01:23]}  c5 {[%clk 0:00:22]} 22. Ndb5 {[%clk 0:01:22]}  Nd3 {[%clk 0:00:21]} 23. a5 {[%clk 0:01:16]}  bxa5 {[%clk 0:00:11]} 24. Qa4 {[%clk 0:01:15]}  Kc8 {[%clk 0:00:01]} 25. Qxa5 {[%clk 0:01:15]}  Qe7 {[%clk 0:00:00]} 26. Rab1 {[%clk 0:00:54]} 1-0


[Site "https://www.chess.com"]

[Event "Titled Tuesday Blitz July 25 Late 2023"]
[White "Chemin, Justo Reinaldo"]
[Black "Gerbelli Neto, Eduardo"]
[WhiteFideId "2101580"]
[BlackFideId "2103281"]
[WhiteElo "2261"]
[BlackElo "2365"]
[Result "1/2-1/2"]
[Round "8"]
[TimeControl "180+2"]
[Date "2023.07.25"]
[WhiteClock "0:00:09"]
[BlackClock "0:00:13"]
[Board "117"]

1. d4 {[%clk 0:03:00]}  d5 {[%clk 0:02:53]} 2. c4 {[%clk 0:03:00]}  c6 {[%clk 0:02:53]} 3. Nc3 {[%clk 0:03:00]}  Nf6 {[%clk 0:02:53]} 4. e3 {[%clk 0:03:00]}  e6 {[%clk 0:02:54]} 5. Nf3 {[%clk 0:03:00]}  Nbd7 {[%clk 0:02:54]} 6. Be2 {[%clk 0:02:59]}  dxc4 {[%clk 0:02:54]} 7. Bxc4 {[%clk 0:02:58]}  b5 {[%clk 0:02:54]} 8. Be2 {[%clk 0:02:58]}  a6 {[%clk 0:02:55]} 9. O-O {[%clk 0:02:58]}  c5 {[%clk 0:02:55]} 10. d5 {[%clk 0:02:49]}  b4 {[%clk 0:02:43]} 11. dxe6 {[%clk 0:02:49]}  fxe6 {[%clk 0:02:44]} 12. Na4 {[%clk 0:02:44]}  Bb7 {[%clk 0:02:28]} 13. b3 {[%clk 0:02:29]}  Qc7 {[%clk 0:02:22]} 14. Bb2 {[%clk 0:02:26]}  Be7 {[%clk 0:02:21]} 15. Ng5 {[%clk 0:02:19]}  Nf8 {[%clk 0:02:12]} 16. Bf3 {[%clk 0:02:08]}  h6 {[%clk 0:01:51]} 17. Bxb7 {[%clk 0:02:06]}  Qxb7 {[%clk 0:01:51]} 18. Nf3 {[%clk 0:02:05]}  N8d7 {[%clk 0:01:40]} 19. Rc1 {[%clk 0:02:04]}  O-O {[%clk 0:01:38]} 20. Qd3 {[%clk 0:01:56]}  Rad8 {[%clk 0:01:31]} 21. Qg6 {[%clk 0:01:52]}  Qe4 {[%clk 0:01:22]} 22. Qxe4 {[%clk 0:01:48]}  Nxe4 {[%clk 0:01:23]} 23. Rfd1 {[%clk 0:01:44]}  Rf5 {[%clk 0:01:03]} 24. Rd3 {[%clk 0:01:36]}  Rd5 {[%clk 0:01:03]} 25. Rcd1 {[%clk 0:01:34]}  Ndf6 {[%clk 0:00:57]} 26. Rxd5 {[%clk 0:01:30]}  exd5 {[%clk 0:00:53]} 27. Ne5 {[%clk 0:01:26]}  Rc8 {[%clk 0:00:33]} 28. f3 {[%clk 0:01:16]}  Nd6 {[%clk 0:00:20]} 29. Nb6 {[%clk 0:01:14]}  Re8 {[%clk 0:00:18]} 30. Nxd5 {[%clk 0:01:13]}  Nf5 {[%clk 0:00:18]} 31. Nxe7+ {[%clk 0:01:08]}  Rxe7 {[%clk 0:00:19]} 32. Nc4 {[%clk 0:01:07]}  Nxe3 {[%clk 0:00:18]} 33. Bxf6 {[%clk 0:01:01]}  gxf6 {[%clk 0:00:16]} 34. Rd8+ {[%clk 0:00:52]}  Kg7 {[%clk 0:00:15]} 35. Rc8 {[%clk 0:00:47]}  Nxc4 {[%clk 0:00:14]} 36. bxc4 {[%clk 0:00:46]}  Re2 {[%clk 0:00:14]} 37. Rxc5 {[%clk 0:00:45]}  Rxa2 {[%clk 0:00:14]} 38. Rc7+ {[%clk 0:00:44]}  Kg6 {[%clk 0:00:14]} 39. Rb7 {[%clk 0:00:44]}  a5 {[%clk 0:00:14]} 40. c5 {[%clk 0:00:44]}  Rc2 {[%clk 0:00:15]} 41. Rb5 {[%clk 0:00:43]}  Rc3 {[%clk 0:00:14]} 42. Rxa5 {[%clk 0:00:42]}  b3 {[%clk 0:00:13]} 43. Rb5 {[%clk 0:00:42]}  Kf7 {[%clk 0:00:13]} 44. h4 {[%clk 0:00:40]}  Ke6 {[%clk 0:00:13]} 45. Kh2 {[%clk 0:00:40]}  Kd5 {[%clk 0:00:13]} 46. Kg3 {[%clk 0:00:30]}  Kc6 {[%clk 0:00:13]} 47. Rb8 {[%clk 0:00:29]}  Kxc5 {[%clk 0:00:14]} 48. Kg4 {[%clk 0:00:25]}  Kc4 {[%clk 0:00:14]} 49. Kh5 {[%clk 0:00:25]}  Rc2 {[%clk 0:00:14]} 50. g4 {[%clk 0:00:22]}  Rf2 {[%clk 0:00:13]} 51. Kxh6 {[%clk 0:00:19]}  Rxf3 {[%clk 0:00:14]} 52. Kg6 {[%clk 0:00:20]}  Kc3 {[%clk 0:00:13]} 53. h5 {[%clk 0:00:19]}  b2 {[%clk 0:00:13]} 54. h6 {[%clk 0:00:17]}  Kc2 {[%clk 0:00:12]} 55. h7 {[%clk 0:00:16]}  Rh3 {[%clk 0:00:12]} 56. Rxb2+ {[%clk 0:00:11]}  Kxb2 {[%clk 0:00:12]} 57. Kg7 {[%clk 0:00:10]}  Kc3 {[%clk 0:00:12]} 58. h8=Q {[%clk 0:00:10]}  Rxh8 {[%clk 0:00:12]} 59. Kxh8 {[%clk 0:00:11]}  Kd4 {[%clk 0:00:13]} 60. Kg7 {[%clk 0:00:11]}  Ke5 {[%clk 0:00:14]} 61. Kg6 {[%clk 0:00:11]}  Ke6 {[%clk 0:00:14]} 62. g5 {[%clk 0:00:09]}  fxg5 {[%clk 0:00:13]} 63. Kxg5 {[%clk 0:00:09]} 1/2-1/2


[Site "https://www.chess.com"]

[Event "Titled Tuesday Blitz July 25 Late 2023"]
[White "K2JW"]
[Black "KSho99"]
[WhiteElo "2358"]
[BlackElo "2226"]
[Result "1-0"]
[Round "8"]
[TimeControl "180+2"]
[Date "2023.07.25"]
[WhiteClock "0:02:00"]
[BlackClock "0:00:51"]
[Board "118"]

1. d4 {[%clk 0:02:51]}  d5 {[%clk 0:02:59]} 2. c4 {[%clk 0:02:51]}  dxc4 {[%clk 0:03:00]} 3. e3 {[%clk 0:02:51]}  Nf6 {[%clk 0:03:00]} 4. Bxc4 {[%clk 0:02:50]}  e6 {[%clk 0:03:00]} 5. Nf3 {[%clk 0:02:50]}  c5 {[%clk 0:03:01]} 6. O-O {[%clk 0:02:48]}  a6 {[%clk 0:03:01]} 7. Nbd2 {[%clk 0:02:48]}  Nc6 {[%clk 0:02:52]} 8. dxc5 {[%clk 0:02:46]}  Bxc5 {[%clk 0:02:52]} 9. Qe2 {[%clk 0:02:40]}  b5 {[%clk 0:02:45]} 10. Bd3 {[%clk 0:02:38]}  Bb7 {[%clk 0:02:42]} 11. e4 {[%clk 0:02:37]}  e5 {[%clk 0:02:15]} 12. Nb3 {[%clk 0:02:36]}  Bb6 {[%clk 0:02:10]} 13. Be3 {[%clk 0:02:36]}  O-O {[%clk 0:02:01]} 14. Rfd1 {[%clk 0:02:31]}  Bxe3 {[%clk 0:01:59]} 15. Qxe3 {[%clk 0:02:31]}  Qe7 {[%clk 0:01:57]} 16. h3 {[%clk 0:02:28]}  Nd7 {[%clk 0:01:50]} 17. a4 {[%clk 0:02:24]}  bxa4 {[%clk 0:01:41]} 18. Rxa4 {[%clk 0:02:25]}  a5 {[%clk 0:01:28]} 19. Rda1 {[%clk 0:02:22]}  Nb6 {[%clk 0:01:25]} 20. Qxb6 {[%clk 0:02:22]}  Nb4 {[%clk 0:01:18]} 21. Nxa5 {[%clk 0:02:10]}  Rxa5 {[%clk 0:00:59]} 22. Rxa5 {[%clk 0:02:03]}  Nxd3 {[%clk 0:00:59]} 23. Ra7 {[%clk 0:02:03]}  Qc5 {[%clk 0:00:51]} 24. Rxb7 {[%clk 0:02:00]} 1-0


[Site "https://www.chess.com"]

[Event "Titled Tuesday Blitz July 25 Late 2023"]
[White "Topalov, Aleksandar"]
[Black "Osiecki, Stanislaw"]
[WhiteFideId "925659"]
[BlackFideId "1102990"]
[WhiteElo "2355"]
[BlackElo "2059"]
[Result "1-0"]
[Round "8"]
[TimeControl "180+2"]
[Date "2023.07.25"]
[WhiteClock "0:01:33"]
[BlackClock "0:01:21"]
[Board "119"]

1. b3 {[%clk 0:03:00]}  e5 {[%clk 0:02:58]} 2. Bb2 {[%clk 0:03:00]}  d6 {[%clk 0:02:58]} 3. d4 {[%clk 0:03:00]}  exd4 {[%clk 0:02:56]} 4. Qxd4 {[%clk 0:02:59]}  Nf6 {[%clk 0:02:55]} 5. Nc3 {[%clk 0:02:58]}  Nc6 {[%clk 0:02:55]} 6. Qf4 {[%clk 0:02:58]}  Be7 {[%clk 0:02:54]} 7. Nf3 {[%clk 0:02:58]}  O-O {[%clk 0:02:54]} 8. O-O-O {[%clk 0:02:58]}  a5 {[%clk 0:02:43]} 9. a3 {[%clk 0:02:55]}  Be6 {[%clk 0:02:41]} 10. e4 {[%clk 0:02:54]}  Nd7 {[%clk 0:02:36]} 11. Kb1 {[%clk 0:02:46]}  Bf6 {[%clk 0:02:35]} 12. h4 {[%clk 0:02:46]}  Nde5 {[%clk 0:02:33]} 13. Nd5 {[%clk 0:02:29]}  Bxd5 {[%clk 0:02:27]} 14. exd5 {[%clk 0:02:29]}  Nxf3 {[%clk 0:02:24]} 15. Bxf6 {[%clk 0:02:25]}  Qxf6 {[%clk 0:02:22]} 16. Qxf6 {[%clk 0:02:24]}  gxf6 {[%clk 0:02:22]} 17. dxc6 {[%clk 0:02:23]}  Ne5 {[%clk 0:02:18]} 18. cxb7 {[%clk 0:02:22]}  Ra7 {[%clk 0:02:16]} 19. Rd5 {[%clk 0:02:11]}  Rxb7 {[%clk 0:02:06]} 20. Rxa5 {[%clk 0:02:10]}  Ng4 {[%clk 0:02:02]} 21. f3 {[%clk 0:01:56]}  Ne3 {[%clk 0:01:59]} 22. Bd3 {[%clk 0:01:54]}  Kh8 {[%clk 0:01:56]} 23. g4 {[%clk 0:01:50]}  Ng2 {[%clk 0:01:48]} 24. h5 {[%clk 0:01:38]}  Nf4 {[%clk 0:01:44]} 25. Be4 {[%clk 0:01:37]}  Rd8 {[%clk 0:01:21]} 26. Bxb7 {[%clk 0:01:33]} 1-0


[Site "https://www.chess.com"]

[Event "Titled Tuesday Blitz July 25 Late 2023"]
[White "JERO-8914"]
[Black "Barwinska, Ewa"]
[BlackFideId "21833761"]
[WhiteElo "2472"]
[BlackElo "2296"]
[Result "1-0"]
[Round "8"]
[TimeControl "180+2"]
[Date "2023.07.25"]
[WhiteClock "0:00:19"]
[BlackClock "0:00:00"]
[Board "121"]

1. c4 {[%clk 0:03:00]}  c5 {[%clk 0:02:53]} 2. Nf3 {[%clk 0:02:59]}  g6 {[%clk 0:02:51]} 3. d4 {[%clk 0:02:59]}  cxd4 {[%clk 0:02:51]} 4. Qxd4 {[%clk 0:02:59]}  Nf6 {[%clk 0:02:51]} 5. g3 {[%clk 0:02:59]}  Nc6 {[%clk 0:02:50]} 6. Qf4 {[%clk 0:02:58]}  Bg7 {[%clk 0:02:49]} 7. Bg2 {[%clk 0:02:59]}  d6 {[%clk 0:02:44]} 8. O-O {[%clk 0:02:58]}  e5 {[%clk 0:02:42]} 9. Qd2 {[%clk 0:02:53]}  Be6 {[%clk 0:02:41]} 10. b3 {[%clk 0:02:46]}  d5 {[%clk 0:02:03]} 11. Ba3 {[%clk 0:02:25]}  dxc4 {[%clk 0:01:59]} 12. Qc2 {[%clk 0:02:15]}  cxb3 {[%clk 0:01:55]} 13. axb3 {[%clk 0:02:16]}  Rc8 {[%clk 0:01:23]} 14. Qb2 {[%clk 0:01:50]}  e4 {[%clk 0:01:12]} 15. Ng5 {[%clk 0:01:49]}  Nh5 {[%clk 0:01:10]} 16. Nxe6 {[%clk 0:01:08]}  Bxb2 {[%clk 0:01:10]} 17. Nxd8 {[%clk 0:01:09]}  Bxa1 {[%clk 0:01:09]} 18. Nxb7 {[%clk 0:01:09]}  Be5 {[%clk 0:00:54]} 19. Bxe4 {[%clk 0:00:55]}  Nd4 {[%clk 0:00:52]} 20. Bd3 {[%clk 0:00:43]}  Rb8 {[%clk 0:00:27]} 21. Ba6 {[%clk 0:00:33]}  Nxe2+ {[%clk 0:00:22]} 22. Kg2 {[%clk 0:00:31]}  Nc3 {[%clk 0:00:03]} 23. Re1 {[%clk 0:00:30]}  f6 {[%clk 0:00:03]} 24. Nxc3 {[%clk 0:00:30]}  Kf7 {[%clk 0:00:02]} 25. Nd5 {[%clk 0:00:23]}  Rhc8 {[%clk 0:00:00]} 26. Nc5 {[%clk 0:00:19]} 1-0


[Site "https://www.chess.com"]

[Event "Titled Tuesday Blitz July 25 Late 2023"]
[White "Mendez Machado, Andre"]
[Black "szachmistrz2500"]
[WhiteFideId "6603793"]
[WhiteElo "2258"]
[BlackElo "2423"]
[Result "1-0"]
[Round "8"]
[TimeControl "180+2"]
[Date "2023.07.25"]
[WhiteClock "0:00:18"]
[BlackClock "0:00:55"]
[Board "123"]

1. e4 {[%clk 0:03:00]}  c5 {[%clk 0:02:59]} 2. Nc3 {[%clk 0:02:59]}  e6 {[%clk 0:02:58]} 3. d4 {[%clk 0:02:59]}  cxd4 {[%clk 0:02:57]} 4. Qxd4 {[%clk 0:03:00]}  Nc6 {[%clk 0:02:57]} 5. Qe3 {[%clk 0:03:00]}  a6 {[%clk 0:02:55]} 6. Qg3 {[%clk 0:03:01]}  d6 {[%clk 0:02:50]} 7. Bd3 {[%clk 0:03:00]}  Nb4 {[%clk 0:02:48]} 8. Nge2 {[%clk 0:02:56]}  g6 {[%clk 0:02:47]} 9. O-O {[%clk 0:02:55]}  Bg7 {[%clk 0:02:48]} 10. f4 {[%clk 0:02:56]}  Nxd3 {[%clk 0:02:41]} 11. cxd3 {[%clk 0:02:56]}  Ne7 {[%clk 0:02:40]} 12. Be3 {[%clk 0:02:49]}  O-O {[%clk 0:02:38]} 13. d4 {[%clk 0:02:45]}  d5 {[%clk 0:02:37]} 14. e5 {[%clk 0:02:11]}  Nf5 {[%clk 0:02:33]} 15. Qf2 {[%clk 0:02:12]}  Nxe3 {[%clk 0:02:31]} 16. Qxe3 {[%clk 0:02:13]}  b5 {[%clk 0:02:31]} 17. b4 {[%clk 0:02:08]}  Bd7 {[%clk 0:02:26]} 18. a4 {[%clk 0:02:07]}  Qb6 {[%clk 0:02:10]} 19. a5 {[%clk 0:01:55]}  Qa7 {[%clk 0:02:08]} 20. g4 {[%clk 0:01:55]}  Rac8 {[%clk 0:02:07]} 21. f5 {[%clk 0:01:50]}  exf5 {[%clk 0:02:07]} 22. gxf5 {[%clk 0:01:49]}  Bxf5 {[%clk 0:02:04]} 23. Nxd5 {[%clk 0:01:48]}  Rfe8 {[%clk 0:01:45]} 24. Rac1 {[%clk 0:01:26]}  Rxe5 {[%clk 0:01:35]} 25. dxe5 {[%clk 0:00:54]}  Qa8 {[%clk 0:01:24]} 26. Rxc8+ {[%clk 0:00:51]}  Bxc8 {[%clk 0:01:22]} 27. Ne7+ {[%clk 0:00:44]}  Kf8 {[%clk 0:01:22]} 28. Qc5 {[%clk 0:00:44]}  Be6 {[%clk 0:01:21]} 29. Nd4 {[%clk 0:00:29]}  Bc4 {[%clk 0:01:18]} 30. Rf2 {[%clk 0:00:22]}  Qe4 {[%clk 0:00:58]} 31. Nxg6+ {[%clk 0:00:17]}  Kg8 {[%clk 0:00:56]} 32. Qc8+ {[%clk 0:00:17]}  Bf8 {[%clk 0:00:55]} 33. Qxf8# {[%clk 0:00:18]} 1-0


[Site "https://www.chess.com"]

[Event "Titled Tuesday Blitz July 25 Late 2023"]
[White "Sarkar, Justin"]
[Black "Al Mukhaini, Shima"]
[WhiteFideId "2010011"]
[BlackFideId "22005854"]
[WhiteElo "2227"]
[BlackElo "2390"]
[Result "1-0"]
[Round "8"]
[TimeControl "180+2"]
[Date "2023.07.25"]
[WhiteClock "0:00:06"]
[BlackClock "0:01:08"]
[Board "125"]

1. d4 {[%clk 0:02:50]}  d5 {[%clk 0:02:57]} 2. c4 {[%clk 0:02:50]}  dxc4 {[%clk 0:02:55]} 3. Nc3 {[%clk 0:02:46]}  Nf6 {[%clk 0:02:54]} 4. e4 {[%clk 0:02:42]}  e6 {[%clk 0:02:54]} 5. Bxc4 {[%clk 0:02:37]}  Be7 {[%clk 0:02:53]} 6. e5 {[%clk 0:02:32]}  Nd5 {[%clk 0:02:53]} 7. Qg4 {[%clk 0:02:31]}  Kf8 {[%clk 0:02:50]} 8. Nf3 {[%clk 0:02:28]}  Nxc3 {[%clk 0:02:43]} 9. bxc3 {[%clk 0:02:27]}  c5 {[%clk 0:02:44]} 10. O-O {[%clk 0:02:22]}  Nc6 {[%clk 0:02:43]} 11. Be3 {[%clk 0:02:12]}  cxd4 {[%clk 0:02:43]} 12. cxd4 {[%clk 0:02:09]}  Na5 {[%clk 0:02:41]} 13. Bd3 {[%clk 0:02:05]}  b6 {[%clk 0:02:41]} 14. Ng5 {[%clk 0:01:27]}  h6 {[%clk 0:02:38]} 15. Nxf7 {[%clk 0:01:14]}  Kxf7 {[%clk 0:02:35]} 16. Qf3+ {[%clk 0:01:13]}  Kg8 {[%clk 0:02:30]} 17. Qxa8 {[%clk 0:01:13]}  Bb7 {[%clk 0:02:28]} 18. Qxa7 {[%clk 0:00:57]}  Qd5 {[%clk 0:02:27]} 19. f3 {[%clk 0:00:57]}  Bd8 {[%clk 0:02:18]} 20. Be4 {[%clk 0:00:53]}  Qd7 {[%clk 0:02:18]} 21. Bxb7 {[%clk 0:00:49]}  Nxb7 {[%clk 0:02:18]} 22. Rac1 {[%clk 0:00:45]}  Kf7 {[%clk 0:02:16]} 23. f4 {[%clk 0:00:37]}  g6 {[%clk 0:02:14]} 24. Qa6 {[%clk 0:00:28]}  Rf8 {[%clk 0:02:07]} 25. Qc4 {[%clk 0:00:24]}  Kg7 {[%clk 0:02:06]} 26. Qc8 {[%clk 0:00:19]}  Qe7 {[%clk 0:02:05]} 27. Rc6 {[%clk 0:00:17]}  Kf7 {[%clk 0:02:01]} 28. Rfc1 {[%clk 0:00:16]}  Na5 {[%clk 0:01:45]} 29. R6c2 {[%clk 0:00:11]}  Kg8 {[%clk 0:01:41]} 30. Qa6 {[%clk 0:00:10]}  g5 {[%clk 0:01:36]} 31. fxg5 {[%clk 0:00:07]}  hxg5 {[%clk 0:01:37]} 32. Qd3 {[%clk 0:00:07]}  Qh7 {[%clk 0:01:33]} 33. Qxh7+ {[%clk 0:00:05]}  Kxh7 {[%clk 0:01:33]} 34. d5 {[%clk 0:00:05]}  exd5 {[%clk 0:01:32]} 35. Rd1 {[%clk 0:00:05]}  Kg6 {[%clk 0:01:27]} 36. Rxd5 {[%clk 0:00:04]}  Kf5 {[%clk 0:01:27]} 37. e6+ {[%clk 0:00:02]}  Kxe6 {[%clk 0:01:27]} 38. Rb5 {[%clk 0:00:03]}  Rf5 {[%clk 0:01:13]} 39. Rxf5 {[%clk 0:00:02]}  Kxf5 {[%clk 0:01:13]} 40. Rd2 {[%clk 0:00:02]}  Bc7 {[%clk 0:01:12]} 41. Bf2 {[%clk 0:00:01]}  g4 {[%clk 0:01:11]} 42. Rc2 {[%clk 0:00:01]}  Bd8 {[%clk 0:01:10]} 43. Rc3 {[%clk 0:00:01]}  Ke4 {[%clk 0:01:10]} 44. Rc8 {[%clk 0:00:01]}  Bf6 {[%clk 0:01:05]} 45. Bxb6 {[%clk 0:00:01]}  Nb7 {[%clk 0:01:05]} 46. Re8+ {[%clk 0:00:01]}  Kf5 {[%clk 0:01:04]} 47. a4 {[%clk 0:00:02]}  Nd6 {[%clk 0:01:03]} 48. Rf8 {[%clk 0:00:01]}  Ke6 {[%clk 0:01:01]} 49. Rxf6+ {[%clk 0:00:01]}  Kxf6 {[%clk 0:01:01]} 50. a5 {[%clk 0:00:01]}  Nc4 {[%clk 0:01:00]} 51. Kf2 {[%clk 0:00:02]}  Ke5 {[%clk 0:01:00]} 52. Kg3 {[%clk 0:00:02]}  Kf5 {[%clk 0:00:59]} 53. Bc7 {[%clk 0:00:02]}  Ke6 {[%clk 0:00:59]} 54. a6 {[%clk 0:00:02]}  Kd7 {[%clk 0:00:59]} 55. a7 {[%clk 0:00:02]}  Kxc7 {[%clk 0:01:00]} 56. a8=Q {[%clk 0:00:03]}  Kd6 {[%clk 0:01:00]} 57. Qa4 {[%clk 0:00:02]}  Ne5 {[%clk 0:01:00]} 58. Qf4 {[%clk 0:00:02]}  Ke6 {[%clk 0:01:00]} 59. Qxe5+ {[%clk 0:00:03]}  Kxe5 {[%clk 0:01:01]} 60. Kxg4 {[%clk 0:00:03]}  Kf6 {[%clk 0:01:02]} 61. h4 {[%clk 0:00:04]}  Kg6 {[%clk 0:01:02]} 62. h5+ {[%clk 0:00:04]}  Kh6 {[%clk 0:01:03]} 63. Kh4 {[%clk 0:00:05]}  Kg7 {[%clk 0:01:04]} 64. Kg5 {[%clk 0:00:05]}  Kh7 {[%clk 0:01:04]} 65. h6 {[%clk 0:00:06]}  Kg8 {[%clk 0:01:05]} 66. Kh5 {[%clk 0:00:06]}  Kh8 {[%clk 0:01:06]} 67. Kg6 {[%clk 0:00:06]}  Kg8 {[%clk 0:01:06]} 68. g4 {[%clk 0:00:06]}  Kh8 {[%clk 0:01:07]} 69. g5 {[%clk 0:00:06]}  Kg8 {[%clk 0:01:08]} 70. Kf6 {[%clk 0:00:05]}  Kh8 {[%clk 0:01:09]} 71. Kf7 {[%clk 0:00:05]}  Kh7 {[%clk 0:01:09]} 72. g6+ {[%clk 0:00:06]}  Kxh6 {[%clk 0:01:08]} 73. g7 {[%clk 0:00:06]} 1-0


[Site "https://www.chess.com"]

[Event "Titled Tuesday Blitz July 25 Late 2023"]
[White "Dwilewicz, Katarzyna"]
[Black "Ardila, Oscar Humberto"]
[WhiteFideId "1148486"]
[BlackFideId "4404742"]
[WhiteElo "2387"]
[BlackElo "2225"]
[Result "0-1"]
[Round "8"]
[TimeControl "180+2"]
[Date "2023.07.25"]
[WhiteClock "0:00:00"]
[BlackClock "0:00:20"]
[Board "126"]

1. e4 {[%clk 0:02:59]}  e5 {[%clk 0:02:59]} 2. Nf3 {[%clk 0:02:58]}  Nf6 {[%clk 0:02:59]} 3. Nc3 {[%clk 0:02:57]}  Nc6 {[%clk 0:02:58]} 4. d4 {[%clk 0:02:57]}  exd4 {[%clk 0:02:58]} 5. Nxd4 {[%clk 0:02:58]}  Bb4 {[%clk 0:02:58]} 6. Nxc6 {[%clk 0:02:58]}  bxc6 {[%clk 0:02:59]} 7. Bd3 {[%clk 0:02:59]}  d5 {[%clk 0:02:59]} 8. exd5 {[%clk 0:02:59]}  cxd5 {[%clk 0:02:59]} 9. O-O {[%clk 0:02:59]}  O-O {[%clk 0:02:59]} 10. Bg5 {[%clk 0:03:00]}  c6 {[%clk 0:02:59]} 11. Qf3 {[%clk 0:03:00]}  Bd6 {[%clk 0:02:59]} 12. Rfe1 {[%clk 0:02:54]}  h6 {[%clk 0:02:58]} 13. Bxf6 {[%clk 0:02:54]}  Qxf6 {[%clk 0:02:58]} 14. Qxf6 {[%clk 0:02:54]}  gxf6 {[%clk 0:02:59]} 15. Ne2 {[%clk 0:02:54]}  Be5 {[%clk 0:02:56]} 16. Rab1 {[%clk 0:02:50]}  Rb8 {[%clk 0:02:55]} 17. b3 {[%clk 0:02:50]}  a5 {[%clk 0:02:55]} 18. a4 {[%clk 0:02:48]}  Bd7 {[%clk 0:02:53]} 19. Ng3 {[%clk 0:02:46]}  Rfd8 {[%clk 0:02:35]} 20. Nf5 {[%clk 0:02:40]}  Bxf5 {[%clk 0:02:29]} 21. Bxf5 {[%clk 0:02:41]}  Bd6 {[%clk 0:02:26]} 22. Rbd1 {[%clk 0:02:34]}  Bb4 {[%clk 0:02:26]} 23. Re3 {[%clk 0:02:32]}  Re8 {[%clk 0:02:25]} 24. Rg3+ {[%clk 0:02:18]}  Kf8 {[%clk 0:02:25]} 25. Bd7 {[%clk 0:02:08]}  Re2 {[%clk 0:02:22]} 26. Bxc6 {[%clk 0:02:07]}  Rxc2 {[%clk 0:02:14]} 27. Bxd5 {[%clk 0:02:06]}  Bc5 {[%clk 0:02:07]} 28. Rf1 {[%clk 0:01:55]}  Rd8 {[%clk 0:01:59]} 29. Rd3 {[%clk 0:01:47]}  Re8 {[%clk 0:01:57]} 30. Rf3 {[%clk 0:01:41]}  Kg7 {[%clk 0:01:53]} 31. Bc4 {[%clk 0:01:34]}  Rd8 {[%clk 0:01:52]} 32. g3 {[%clk 0:01:31]}  Rdd2 {[%clk 0:01:52]} 33. Kg2 {[%clk 0:01:31]}  Rb2 {[%clk 0:01:45]} 34. Rf5 {[%clk 0:01:30]}  Bd4 {[%clk 0:01:36]} 35. g4 {[%clk 0:01:23]}  Bc3 {[%clk 0:01:33]} 36. Re1 {[%clk 0:01:03]}  Rd4 {[%clk 0:01:29]} 37. Re7 {[%clk 0:01:03]}  Rxg4+ {[%clk 0:01:28]} 38. Kf3 {[%clk 0:01:03]}  Rxc4 {[%clk 0:01:20]} 39. bxc4 {[%clk 0:01:00]}  Bd4 {[%clk 0:01:21]} 40. Rxa5 {[%clk 0:00:57]}  Rxf2+ {[%clk 0:01:19]} 41. Kg3 {[%clk 0:00:57]}  Rc2 {[%clk 0:01:16]} 42. Rb5 {[%clk 0:00:43]}  Rxc4 {[%clk 0:01:13]} 43. a5 {[%clk 0:00:43]}  Ra4 {[%clk 0:01:13]} 44. Rd7 {[%clk 0:00:34]}  Be5+ {[%clk 0:01:12]} 45. Kg2 {[%clk 0:00:27]}  Ra2+ {[%clk 0:01:12]} 46. Kf3 {[%clk 0:00:26]}  Bxh2 {[%clk 0:01:10]} 47. Ra7 {[%clk 0:00:16]}  Bg1 {[%clk 0:01:06]} 48. Ra8 {[%clk 0:00:16]}  h5 {[%clk 0:01:04]} 49. a6 {[%clk 0:00:16]}  h4 {[%clk 0:00:58]} 50. Rb4 {[%clk 0:00:11]}  Rf2+ {[%clk 0:00:46]} 51. Ke4 {[%clk 0:00:05]}  f5+ {[%clk 0:00:46]} 52. Kd5 {[%clk 0:00:05]}  h3 {[%clk 0:00:42]} 53. Kc4 {[%clk 0:00:03]}  h2 {[%clk 0:00:38]} 54. a7 {[%clk 0:00:03]}  Ra2 {[%clk 0:00:24]} 55. Rb7 {[%clk 0:00:00]}  h1=Q {[%clk 0:00:20]} 0-1


[Site "https://www.chess.com"]